Cogmind - Beta 13 *** ADVENTURER MODE // 2024.06.23 @ 23:31:31 Player: AnotherZach Result: Destroyed by H-88 Terminator with KE Penetrator Performance ------------- Evolutions (8) 4000 Regions Visited (16) 3200 Robots Destroyed (339) 1695 Value Destroyed (14192) 14192 Prototype IDs (49) 980 Alien Tech Used (0) 0 Bonus (8890) 8890 TOTAL SCORE: 32957 Bonus ------- High Alert Combat Kills 2754 Follower Combat Kills 2296 Network Hubs Disabled 200 Built Enhanced Grunts 300 A7 Reached Mainframe 300 Met R17 at Cetus 500 Hacked Protovariant 500 Met R17 at Research 2000 Scanned by Researcher 500 Friendly Fire -460 Cogmind --------- Core Integrity 0/1450 Matter 300/300 Energy 100/100 System Corruption 25% Temperature Cool (19) Movement Hovering (60) Location -2/Research Parts ------- > --- POWER (2) -------- (None) > --- PROPULSION (6) --- Gravmag Array > --- UTILITY (11) ----- Advanced Target Analyzer Experimental Armor Integrity Analyzer Experimental Armor Integrity Analyzer > --- WEAPON (4) ------- (None) > --- INVENTORY (5) ---- Experimental Matter Compressor (121) Nova Cannon Perforator Peak State ------------ > --- POWER ------------ Mini Fusion Reactor Quantum Reactor > --- PROPULSION ------- Centrium Heavy Treads Centrium Heavy Treads Biometal Leg Biometal Leg > --- UTILITY ---------- Experimental Cooling System Experimental Coolant Injector High-capacity Storage Unit Advanced Visual Processing Unit Advanced Signal Interpreter Advanced Targeting Computer Advanced Target Analyzer Advanced Target Analyzer Advanced Powered Armor Advanced Shield Generator Experimental Hacking Suite > --- WEAPON ----------- Cooled Nova Cannon Perforator Plasma Lance > --- INVENTORY -------- Particle Reactor Myomer Leg Myomer Exoskeleton Experimental Cooling System Experimental Energy Well Experimental Matter Compressor Advanced Sensor Array Experimental Reaction Control System Advanced Phase Shifter Centrium Medium Armor Plating Advanced Powered Armor Heavy Tesla Rifle Precision Phase Gun Nova Cannon Disintegrator Neutron Missile Launcher [Rating: 199] Favorites ----------- Power Quantum Reactor Engine Ion Engine Power Core Neutrino Core Reactor Quantum Reactor Propulsion Centrium Heavy Treads Treads Centrium Heavy Treads Leg Flexi-carbon Leg Wheel Wheel Hover Unit Gravmag Array Flight Unit Improved VTOL Module Utility Advanced Visual Processing Unit Device Advanced Cooling System Storage High-capacity Storage Unit Processor Advanced Visual Processing Unit Hackware Experimental Hacking Suite Protection Centrium Medium Armor Plating Weapon Advanced KE Penetrator Energy Gun Advanced Variable Charge Gun Energy Cannon Compact HERF Cannon Ballistic Gun Advanced KE Penetrator Ballistic Cannon Hardcell Cannon Launcher Rocket Launcher Special Weapon Improved Plasma Cutter Impact Weapon Gravity Flail Slashing Weapon Blade Saw Piercing Weapon Plasma Lance Build | -11 -10 -10 -8 -7 -6 -6 -6 -5 -4 -4 -4 -4 -4 -3 -3 -2 ------- Run | Yrd Mat Sub Mat Fac Fac Low Low Fac Fac Ext Cet Arc Hub Res Tes Res Slots Evolved 16 | . . . 4 2 2 . . 2 2 . . . . 2 . 2 Power 1 | . . . . . 1 . . . . . . . . . . . Propulsion 4 | . . . 1 . 1 . . 1 1 . . . . . . . Utility 9 | . . . 2 2 . . . 1 1 . . . . 1 . 2 Weapon 2 | . . . 1 . . . . . . . . . . 1 . . Parts Attached 344 | 7 16 4 38 8 27 . . 19 27 16 14 5 7 35 59 62 Power 39 | 1 1 . 4 2 5 . . 1 6 3 1 2 2 2 . 9 Engine 11 | 1 1 . 2 1 4 . . . 1 . . . . . . 1 Core 13 | . . . 2 1 1 . . 1 3 3 . 1 1 . . . Reactor 15 | . . . . . . . . . 2 . 1 1 1 2 . 8 Propulsion 62 | 2 4 . 9 1 7 . . 2 4 4 6 1 1 5 4 12 Treads 16 | . 2 . . . . . . . . . 3 1 1 4 4 1 Leg 15 | . . . . . . . . . . 4 1 . . 1 . 9 Wheel 9 | 2 2 . 5 . . . . . . . . . . . . . Hover 1 | . . . . . . . . . . . . . . . . 1 Flight 21 | . . . 4 1 7 . . 2 4 . 2 . . . . 1 Utility 145 | 2 3 . 9 4 12 . . 10 10 5 5 2 4 22 31 26 Device 82 | 1 . . 3 4 8 . . 6 8 4 4 2 2 10 18 12 Storage 13 | 1 2 . 1 . . . . 1 . 1 . . 1 2 1 3 Processor 14 | . 1 . 2 . 1 . . 1 1 . . . . 3 2 3 Hackware 12 | . . . 1 . 3 . . 2 1 . . . 1 2 1 1 Protection 24 | . . . 2 . . . . . . . 1 . . 5 9 7 Artifact . | . . . . . . . . . . . . . . . . . Weapon 98 | 2 8 4 16 1 3 . . 6 7 4 2 . . 6 24 15 Energy Gun 18 | . . 1 7 . . . . . . . 1 . . 1 4 4 Energy Cannon 12 | . . . 1 . . . . . . . . . . . 9 2 Ballistic Gun 22 | 2 4 1 2 . . . . . . 1 1 . . 4 3 4 Ballistic Cannon 10 | . . . 1 . . . . . 2 2 . . . . 3 2 Launcher 16 | . 4 1 4 1 1 . . . 1 1 . . . 1 1 1 Special Weapon 2 | . . . . . . . . . 2 . . . . . . . Impact Weapon 1 | . . . . . . . . . . . . . . . . 1 Slashing Weapon 8 | . . 1 1 . 1 . . 4 1 . . . . . . . Piercing Weapon 9 | . . . . . 1 . . 2 1 . . . . . 4 1 Special Melee Weapon . | . . . . . . . . . . . . . . . . . Unidentified Prototypes 36 | . . . 6 . . . . . . . 4 . 1 4 17 4 Parts Lost 79 | . . 1 3 . 7 . . 3 4 1 1 . 1 4 2 52 Power 10 | . . . 1 . . . . . . . . . . 1 . 8 Propulsion 18 | . . . 1 . 1 . . 1 4 . . . 1 . . 10 Utility 40 | . . . 1 . 6 . . 2 . 1 1 . . 2 1 26 Weapon 11 | . . 1 . . . . . . . . . . . 1 1 8 Highest Loss Streak 24 | . . 1 2 . 4 . . 2 2 1 1 . 1 2 2 24 To Critical Strikes . | . . . . . . . . . . . . . . . . . Average Slot Usage (%) 87 | . 100 100 94 87 82 93 93 96 74 75 93 88 88 86 84 74 Engine 3 | . 14 14 8 3 11 6 6 . . . . . . . . . Core 1 | . . . . 2 . 6 6 10 8 6 5 2 . . . . Reactor 4 | . . . . . . . . . 1 1 4 7 10 8 9 6 Treads 9 | . 19 . . . . . . . . . 5 18 21 15 15 5 Leg 1 | . . . . . . . . . . 6 15 . . . . 6 Wheel 4 | . 8 28 23 . . . . . . . . . . . . . Flight 4 | . . . 2 23 25 26 26 27 20 10 4 1 . . . . Device 11 | . 3 . 7 22 15 20 20 18 16 17 12 15 14 17 8 12 Storage 6 | . 14 14 9 7 6 6 6 5 5 1 5 5 5 4 4 6 Processor 10 | . 10 14 6 7 5 . . 3 8 10 7 5 5 6 16 14 Hackware 4 | . . . . 7 8 13 13 11 10 10 10 10 10 5 3 2 Protection 4 | . . . 8 . . . . . . . 4 5 5 6 6 5 Energy Gun 4 | . . 6 9 . . . . . . . 2 5 5 3 7 1 Energy Cannon 1 | . . . 4 . . . . . . . . . . . 3 2 Ballistic Gun 6 | . 23 7 6 . . . . . . 2 7 5 5 11 1 3 Ballistic Cannon 2 | . . . 3 . . . . . . 6 5 5 5 1 2 1 Launcher 1 | . 4 12 1 9 . . . . . . . . . . . . Naked Turns . | . . . . . . . . . . . . . . . . . Heaviest Build 130 | 15 91 93 118 24 31 26 26 33 41 68 82 85 95 130 129 126 Greatest Support 230 | 26 40 20 42 25 30 29 30 35 37 90 183 211 211 230 230 230 Greatest Overweight (x) 9 | . 4 4 6 1 1 . . 1 1 9 . . . . . 1 Average Overweight (x) . | . . 4 1 . . . . . . . . . . . . . Largest Inventory Capacity 25 | 8 25 25 25 8 8 8 8 10 10 10 10 10 15 20 20 20 Average Capacity 16 | 7 16 25 23 8 8 8 8 9 10 6 10 10 13 15 20 18 Most Carried 25 | 6 17 23 25 8 8 8 8 10 10 10 10 10 15 18 20 20 Average Carried 15 | 3 14 18 22 7 7 7 8 9 9 6 9 9 13 14 19 14 Final Capacity 25 | 8 25 25 8 8 8 8 8 10 10 10 10 10 15 20 20 5 Final Carried 23 | 5 17 23 8 8 8 8 8 10 8 10 10 10 14 17 20 4 Class Distribution -------------------- 36% | Scavenger-Tank 17% | Scavenger-Gunner 14% | Mutant 11% | Hacker-Sprinter 4% | Gunner 3% | Tank 3% | Scavenger-Sprinter Dominant Class ---------------- Mutant | -10/Materials Mutant | -10/Subcaves Gunner | -8/Materials Hacker-Sprinter | -7/Factory Hacker-Sprinter | -6/Factory Hacker-Sprinter | -6/Lower Caves Hacker-Sprinter | -6/Lower Caves Scavenger-Sprinter | -5/Factory Scavenger-Scout | -4/Factory Scavenger-Tank | -4/Extension Scavenger-Tank | -4/Cetus Scavenger-Tank | -4/Archives Scavenger-Tank | -4/Hub_04(d) Scavenger-Tank | -3/Research Scavenger-Gunner | -3/Testing Scavenger-Mutant | -2/Research Resources | -11 -10 -10 -8 -7 -6 -6 -6 -5 -4 -4 -4 -4 -4 -3 -3 -2 ----------- Run | Yrd Mat Sub Mat Fac Fac Low Low Fac Fac Ext Cet Arc Hub Res Tes Res Matter Collected 12282 | 236 443 215 1411 574 292 22 . 239 74 804 383 281 267 2227 2081 2733 Remotely . | . . . . . . . . . . . . . . . . . Salvage Created 15654 | 102 370 131 1671 190 188 . . 297 101 545 182 318 1247 2168 3762 4382 Parts 792 | 5 38 13 99 22 15 . . 24 14 23 10 22 54 95 173 185 Haulers Intercepted 11 | . 2 . 3 . . . . . . 2 . . 2 . . 2 Recyclers Shooed 4 | . . . . . . . . . . 1 . . 2 . . 1 Parts Field Recycled . | . . . . . . . . . . . . . . . . . Retrieved Matter . | . . . . . . . . . . . . . . . . . Parts Self-Destructed 1 | . . 1 . . . . . . . . . . . . . . Prevented . | . . . . . . . . . . . . . . . . . Kills | -11 -10 -10 -8 -7 -6 -6 -6 -5 -4 -4 -4 -4 -4 -3 -3 -2 ------- Run | Yrd Mat Sub Mat Fac Fac Low Low Fac Fac Ext Cet Arc Hub Res Tes Res Combat Hostiles Destroyed 193 | . 8 6 31 5 5 . . . 4 4 2 1 4 31 40 52 Melee 5 | . . 1 . . 3 . . . . . . . . . . 1 Guns 75 | . 3 1 14 . . . . . . 1 . . 1 26 16 13 Cannons 77 | . . . 8 . . . . . 1 3 2 1 3 4 22 33 AOE 33 | . 5 4 9 5 2 . . . 3 . . . . 1 . 4 Classes Destroyed 27 | 2 5 3 4 1 2 . . . . 1 . . . 2 3 4 Worker 34 | . . . 9 2 1 . . 3 1 . . . 9 . 2 7 Builder 28 | . 1 . 2 1 . . . 2 . 2 . . 5 2 5 8 Tunneler 11 | 1 2 . 3 . . . . 1 . . . . 3 . . 1 Hauler 11 | . 2 . 3 . . . . . . 2 . . 2 . . 2 Recycler 15 | 1 . . 3 . . . . 1 . 1 . . 3 1 2 3 Carrier 1 | . . . . . . . . . . . . . . . . 1 Mechanic 1 | . . . 1 . . . . . . . . . . . . . Operator 15 | . . . 1 1 1 . . 1 . . . 9 . 1 1 . Watcher 21 | . 3 . 5 3 1 . . 1 . . 1 . 2 1 2 2 Swarmer 38 | . 3 . 14 . . . . . 3 2 . . . 6 . 10 Cutter 4 | . . . . . 3 . . . 1 . . . . . . . Saboteur 1 | . . . . . . . . . . . . . . . . 1 Grunt 65 | . 5 . 10 3 1 . . . . . . . 3 13 19 11 Brawler 3 | . . . 2 1 . . . . . . . . . . . . Protector 1 | . . . . . . . . . . . . . . . . 1 Researcher 8 | . . . . . . . . . . . . . . . 8 . Sentry 16 | . . 1 5 . . . . . . 1 . 1 . 3 . 5 Demolisher 2 | . . . . . . . . . . . . . . 2 . . Specialist 5 | . . . . . . . . . . . . . . . 3 2 Hunter 20 | . . . . . 1 . . . . . . . . 2 5 12 Programmer 21 | . . . . 1 . . . . . . . . 1 1 12 6 Heavy 1 | . . . . . . . . . . . . . . . . 1 Q-Series 3 | . . . . . . . . . . . . . . . 1 2 Behemoth 2 | . . . . . . . . . . 1 . . . 1 . . Cetus Guard 2 | . . . . . . . . . . . 2 . . . . . Striker 4 | . . . . . . . . . . . . . . 3 . 1 Artisan 1 | . . 1 . . . . . . . . . . . . . . Subdweller 5 | . . 5 . . . . . . . . . . . . . . Thug 1 | . . . . . . . . . . . 1 . . . . . Best Kill Streak 21 | 2 4 3 10 3 5 . . 3 5 4 1 6 21 6 7 18 Combat Bots Only 16 | . 3 3 7 3 5 . . . 4 2 1 1 2 5 6 16 Max Kills in Single Turn 9 | 1 3 1 3 2 2 . . 1 3 2 2 1 9 2 3 4 Gunslinging . | . . . . . . . . . . . . . . . . . Exploded 3 | . 2 1 2 1 1 . . . 3 . . . . 1 . 2 Melee 1 | . . 1 . . 1 . . . . . . . . . . 1 Uniques/NPCs Destroyed . | . . . . . . . . . . . . . . . . . Combat | -11 -10 -10 -8 -7 -6 -6 -6 -5 -4 -4 -4 -4 -4 -3 -3 -2 -------- Run | Yrd Mat Sub Mat Fac Fac Low Low Fac Fac Ext Cet Arc Hub Res Tes Res Hostile Shots Fired 1836 | . 18 22 142 56 93 . 4 48 130 34 16 . 56 177 280 760 Missed 691 | . 5 6 50 31 51 . 2 27 74 13 3 . 20 50 92 267 Damage Taken 20280 | . 127 272 974 184 523 . 22 320 733 343 286 . 785 2324 2329 11058 Core 2539 | . 33 38 154 44 120 . 12 67 222 61 10 . 28 80 211 1459 Absorbed by Shields 2117 | . . . . . . . . . 152 146 57 . 276 637 321 528 Redirected to Shielding 84 | . . . 15 . . . . . . . . . . . . 69 Ignored by Resistances 6131 | . 37 78 289 63 150 . 7 87 252 136 91 . 283 797 746 3115 Regen/Repaired (Parts) 2067 | . 14 . 71 22 . . . . . . . . . 814 1146 . Core Remaining (%) 82 | 100 . 71 72 93 . . 84 93 . . . . 72 . 77 . Volleys Fired 534 | 7 25 21 85 22 2 . . . 11 31 11 21 23 84 105 86 Largest 4 | 2 2 2 3 1 1 . . . 2 3 3 3 3 4 4 4 Hottest 356 | 40 50 66 180 46 46 . . . 104 161 161 180 340 215 356 301 Shots Fired 1413 | 14 38 33 225 22 2 . . . 12 63 33 59 67 295 338 212 Gun 931 | 14 29 16 146 . . . . . . 17 14 38 44 261 232 120 Cannon 398 | . . . 67 . . . . . 6 45 19 21 23 29 106 82 Launcher 79 | . 9 17 12 22 2 . . . 1 1 . . . 5 . 10 Special 5 | . . . . . . . . . 5 . . . . . . . Kinetic 835 | 14 29 16 119 . . . . . 6 62 33 42 46 252 105 111 Thermal 396 | . . . 59 . . . . . 5 . . 17 21 38 187 69 Explosive 77 | . 9 17 12 22 2 . . . . . . . . 5 . 10 Electromagnetic 105 | . . . 35 . . . . . 1 1 . . . . 46 22 Robot Hit Streak 61 | 9 10 15 61 19 20 . . . 4 15 12 13 14 30 40 33 Robot Miss Streak 6 | 1 2 1 2 . . . . . 1 3 3 3 2 6 6 5 Penetration Max 2 | . . . . . . . . . . 1 1 . 1 1 2 2 Secondary Targets 7 | . . . 1 . . . . . . . . . . 1 . 5 Max Gunslinging Chain 1 | . . . 1 . . . . . . . . . . 1 . 1 Shots Hit Robots 1031 | 12 24 25 156 11 13 1 . 20 10 41 26 35 36 221 214 186 Core Hits 618 | 3 21 11 85 19 7 . . 9 7 16 11 19 43 80 125 162 Critical Kills 83 | . . . . . . . . . 1 2 2 2 1 6 31 38 Critical Parts Destroyed 109 | . . . . . . . . . 1 10 3 1 . 10 42 42 Critical Strikes 238 | . . . 5 . 2 . . 3 4 13 8 3 4 23 82 91 Burn 12 | . . . 2 . . . . . . . . . . . 6 4 Meltdown 1 | . . . . . . . . . . . . . . . . 1 Destroy 204 | . . . . . . . . . 2 13 5 3 1 22 76 82 Blast 10 | . . . 3 . . . . . . . 3 . 3 1 . . Corrupt 3 | . . . . . . . . . . . . . . . . 3 Sever 5 | . . . . . . . . 3 2 . . . . . . . Impale 3 | . . . . . 2 . . . . . . . . . . 1 Melee Attacks 111 | . . 2 2 3 29 1 . 49 6 . . . . . 4 15 Impact . | . . . . . . . . . . . . . . . . . Slashing 54 | . . 2 2 3 . 1 . 40 6 . . . . . . . Piercing 57 | . . . . . 29 . . 9 . . . . . . 4 15 Sneak Attacks 16 | . . . . 2 1 1 . 8 1 . . . . . . 3 Combat Hostiles . | . . . . . . . . . . . . . . . . . Follow-up Attacks 4 | . . . . . . . . 4 . . . . . . . . Damage Inflicted 37070 | 149 827 1057 3919 1442 1034 40 . 1129 423 1223 762 1155 2530 6343 6880 8157 Guns 18019 | 149 245 238 2121 . . . . . . 376 309 712 949 5397 4751 2772 Cannons 8251 | . . . 972 . . . . . 60 823 453 443 521 511 2119 2349 Explosions 8275 | . 582 734 826 1240 591 . . . 256 24 . . 1052 435 . 2535 Melee 2507 | . . 85 . 202 443 40 . 1129 107 . . . . . . 501 Ramming 18 | . . . . . . . . . . . . . 8 . 10 . Kinetic 15038 | 149 245 238 1584 . . . . . 60 1199 762 815 979 5112 1546 2349 Thermal 9934 | . . . 1042 . 444 . . . . . . 340 491 796 4287 2534 Explosive 6185 | . 582 734 632 1240 147 . . . 157 . . . . 435 . 2258 Electromagnetic 3388 | . . . 661 . . . . . 99 24 . . 1052 . 1037 515 Impact . | . . . . . . . . . . . . . . . . . Slashing 1401 | . . 85 . 202 . 40 . 967 107 . . . . . . . Piercing 1106 | . . . . . 443 . . 162 . . . . . . . 501 Highest Corruption 25 | . . . 1 1 . . . 1 1 1 1 1 2 1 3 25 Average Corruption 3 | . . . 1 1 . . . 1 1 1 1 1 2 1 1 15 Corruption Purged 8 | . . . . 1 . . . . . 1 . 1 . . 5 . Corruption Blocked 45 | . . . . . . . . . . . . . . . 45 . Effects 62 | . . . 6 2 . . . 1 1 1 3 3 1 1 14 29 Message Errors 11 | . . . . 1 . . . . . . 1 1 . 1 4 3 Matter Fused 16 | . . . 3 1 . . . 1 . . 1 . . . 7 3 Heat Flow Errors 6 | . . . 1 . . . . . . . . 1 . . . 4 Energy Discharges 7 | . . . . . . . . . 1 . . . . . 2 4 Parts Rejected 3 | . . . . . . . . . . . . 1 1 . . 1 Parts Fused 1 | . . . . . . . . . . . . . . . 1 . Data Loss (minor) 5 | . . . 1 . . . . . . 1 . . . . . 3 Data Loss (major) 3 | . . . . . . . . . . . 1 . . . . 2 Alerts 2 | . . . . . . . . . . . . . . . . 2 Misdirections 3 | . . . . . . . . . . . . . . . . 3 Weapon Failures 5 | . . . 1 . . . . . . . . . . . . 4 Overload Shots 18 | . . . . . . . . . . . . . 5 . 3 10 Effects 2 | . . . . . . . . . . . . . . . . 2 Energy Bleed 1 | . . . . . . . . . . . . . . . . 1 Heat Surge 1 | . . . . . . . . . . . . . . . . 1 Overflow Damage 977 | . . 20 76 36 94 . . 189 15 40 . 58 43 55 87 264 Projectiles 328 | . . . 7 . . . . . . 40 . 58 25 20 87 91 Explosions 364 | . . 20 69 . 53 . . . 15 . . . 18 35 . 154 Melee 285 | . . . . 36 41 . . 189 . . . . . . . 19 Knockbacks 62 | . . . 6 . . . . . 3 2 . 5 2 4 22 18 Impact . | . . . . . . . . . . . . . . . . . Kinetic 58 | . . . 6 . . . . . 2 2 . 5 2 4 20 17 Secondary 4 | . . . . . . . . . 1 . . . . . 2 1 Self-Inflicted Damage 524 | . . 4 63 9 . . . . 31 . . . 81 . . 336 Shots 14 | . . 1 2 1 . . . . 2 . . . 1 . . 7 Rammed 3 | . . . . . . . . . . . . . 1 . 2 . Targets Rammed 3 | . . . . . . . . . . . . . 1 . 2 . Kicked . | . . . . . . . . . . . . . . . . . Crushed . | . . . . . . . . . . . . . . . . . Highest Temperature 576 | . 4 . 187 15 19 . 27 30 219 234 226 176 360 216 374 576 Average Temperature 72 | . 3 . 31 4 7 . 16 11 151 38 62 26 71 80 86 134 Received Heat Transfer 2986 | . 75 60 486 63 96 . . 75 274 30 36 . 90 219 433 1049 Effects 17 | . . . . . . . . . . . . . 1 . 1 15 Shutdowns 6 | . . . . . . . . . . . . . . . 1 5 Energy Bleed 1 | . . . . . . . . . . . . . . . . 1 Interference 4 | . . . . . . . . . . . . . 1 . . 3 Matter Decay 1 | . . . . . . . . . . . . . . . . 1 Short Circuit 1 | . . . . . . . . . . . . . . . . 1 Damage (minor) 1 | . . . . . . . . . . . . . . . . 1 Damage (major) 3 | . . . . . . . . . . . . . . . . 3 Siege Activations . | . . . . . . . . . . . . . . . . . Robots Corrupted . | . . . . . . . . . . . . . . . . . Combat Hostiles . | . . . . . . . . . . . . . . . . . Parts Fried 15 | . . . 2 . . . . . . . . . 7 1 4 1 Impact Corruptions . | . . . . . . . . . . . . . . . . . Robots Melted 2 | . . . . . . . . . . . . . . . 1 1 Combat Hostiles 2 | . . . . . . . . . . . . . . . 1 1 Parts Melted 29 | . . . 3 . . . . . . . . 1 . 4 12 9 Heat Transferred 12211 | . . . 1778 . 250 . . . . . . 444 618 1203 5382 2536 Parts Sabotaged . | . . . . . . . . . . . . . . . . . Parts Stolen . | . . . . . . . . . . . . . . . . . Parts Stripped . | . . . . . . . . . . . . . . . . . Power Chain Reactions 8 | . . . 3 . . . . . . . . . . . . 5 Alert | -11 -10 -10 -8 -7 -6 -6 -6 -5 -4 -4 -4 -4 -4 -3 -3 -2 ------- Run | Yrd Mat Sub Mat Fac Fac Low Low Fac Fac Ext Cet Arc Hub Res Tes Res Peak Influence 1510 | 10 183 . 857 697 716 . . 506 402 621 519 360 1135 794 394 1510 Initial 506 | . 5 . . 334 294 . . 105 213 139 302 107 105 506 284 96 Average 357 | 4 73 . 427 470 421 . . 297 260 321 384 305 412 565 121 911 Maximum Alert Level 4 | . . . 3 2 3 . . 2 2 2 2 1 4 3 1 4 Low Security (%) 39 | 100 100 . 36 . . . . 17 8 23 . 12 19 . 86 19 Level 1 23 | . . . 3 24 53 . . 63 91 54 79 87 34 3 13 5 Level 2 28 | . . . 40 75 46 . . 18 . 22 20 . 40 87 . 5 Level 3 4 | . . . 19 . . . . . . . . . . 8 . 19 Level 4 4 | . . . . . . . . . . . . . 5 . . 50 Level 5 . | . . . . . . . . . . . . . . . . . High Security . | . . . . . . . . . . . . . . . . . Max Security . | . . . . . . . . . . . . . . . . . Squads Dispatched 94 | . 1 . 10 2 9 . . 7 9 1 . . 9 7 20 19 Investigation 40 | . 1 . 5 2 6 . . 5 4 . . . 4 4 7 2 Extermination 11 | . . . . . . . . . 1 . . . 1 . 7 2 Reinforcement 24 | . . . . . 3 . . 1 1 1 . . 3 3 5 7 Assault 6 | . . . 2 . . . . . . . . . 1 . 1 2 Garrison 13 | . . . 3 . . . . 1 3 . . . . . . 6 Intercept . | . . . . . . . . . . . . . . . . . Searches Triggered 1 | . . . . . 1 . . . . . . . . . . . Construction Impeded 5 | . . . . . . . . . . 1 . . 1 . 1 2 Haulers Reinforced 3 | . . . . . 1 . . . . . . . . 1 1 . Active Scanning Responses . | . . . . . . . . . . . . . . . . . Cargo Convoy Interrupts 1 | . . . . . . . . . . . . . . . . 1 Stealth | -11 -10 -10 -8 -7 -6 -6 -6 -5 -4 -4 -4 -4 -4 -3 -3 -2 --------- Run | Yrd Mat Sub Mat Fac Fac Low Low Fac Fac Ext Cet Arc Hub Res Tes Res Distress Signals 23 | . . . 1 . . . . . 3 3 2 . 3 4 4 3 Communications Jammed 17 | . . . . . . . . . 17 . . . . . . . Distress Signals 16 | . . . . . . . . . 16 . . . . . . . Times Spotted 428 | . 11 6 67 15 22 . 4 20 43 25 10 12 21 42 50 80 Peak Tracking Total 18 | . 3 2 8 3 7 . 4 10 16 5 5 2 18 7 7 9 Tactical Retreats 37 | . . . 5 3 9 . . 5 5 1 . . 1 2 1 5 Traps | -11 -10 -10 -8 -7 -6 -6 -6 -5 -4 -4 -4 -4 -4 -3 -3 -2 ------- Run | Yrd Mat Sub Mat Fac Fac Low Low Fac Fac Ext Cet Arc Hub Res Tes Res Traps Triggered 11 | . 1 . . . 2 . . . 3 1 . . . . 3 1 Indirectly . | . . . . . . . . . . . . . . . . . Trap Hack Attempts . | . . . . . . . . . . . . . . . . . Triggered . | . . . . . . . . . . . . . . . . . Disarmed . | . . . . . . . . . . . . . . . . . Reprogrammed . | . . . . . . . . . . . . . . . . . Reused . | . . . . . . . . . . . . . . . . . Traps Extracted . | . . . . . . . . . . . . . . . . . Installed . | . . . . . . . . . . . . . . . . . Triggered . | . . . . . . . . . . . . . . . . . Objects Rigged 6 | . 1 . . . 5 . . . . . . . . . . . Exploded 2 | . . . . . 2 . . . . . . . . . . . Machines | -11 -10 -10 -8 -7 -6 -6 -6 -5 -4 -4 -4 -4 -4 -3 -3 -2 ---------- Run | Yrd Mat Sub Mat Fac Fac Low Low Fac Fac Ext Cet Arc Hub Res Tes Res Machines Disabled 64 | . . . 5 3 7 . . 2 5 1 . 5 21 1 13 1 Max in Single Turn 16 | . . . 1 1 5 . . 1 4 . . 2 16 1 1 1 Network Hub 1 | . . . . . . . . . . . . . 1 . . . Machines Repaired . | . . . . . . . . . . . . . . . . . Machines Dismantled . | . . . . . . . . . . . . . . . . . Machines Sabotaged . | . . . . . . . . . . . . . . . . . Overloaded Fab Kills . | . . . . . . . . . . . . . . . . . Hacking | -11 -10 -10 -8 -7 -6 -6 -6 -5 -4 -4 -4 -4 -4 -3 -3 -2 --------- Run | Yrd Mat Sub Mat Fac Fac Low Low Fac Fac Ext Cet Arc Hub Res Tes Res Machines Accessed 87 | . 11 1 11 4 9 . . 8 7 8 2 . 8 4 12 2 Terminals 51 | . 8 . 6 1 7 . . 1 3 8 2 . 7 1 6 1 Fabricators 7 | . . . . 1 . . . 1 2 . . . . . 2 1 Repair Stations 8 | . 1 . 1 2 . . . 1 1 . . . . 1 1 . Recycling Units 6 | . 2 . 1 . . . . 3 . . . . . . . . Scanalyzers 8 | . . . 2 . 1 . . . . . . . . 2 3 . Garrison Access 6 | . . . 1 . 1 . . 2 1 . . . 1 . . . Total Hacks 361 | . 36 2 43 10 40 . . 22 34 19 5 . 38 41 61 10 Successful 209 | . 24 2 27 6 15 . . 11 18 10 4 . 22 27 39 4 Failed 150 | . 12 . 16 4 24 . . 11 16 9 1 . 15 14 22 6 Catastrophic 19 | . . . 2 1 4 . . 2 2 1 . . 2 1 3 1 Database Lockouts 2 | . . . . . 1 . . . . . . . 1 . . . Manual 184 | . 27 . 26 3 25 . . 13 17 11 1 . 29 10 20 2 Terminals 205 | . 29 . 24 3 31 . . 2 14 19 5 . 36 8 29 5 Fabricators 31 | . . . . 3 . . . 4 11 . . . . . 8 5 Repair Stations 31 | . 2 . 2 4 . . . 2 3 . . . . 8 10 . Recycling Units 18 | . 5 . 4 . . . . 9 . . . . . . . . Scanalyzers 55 | . . . 10 . 6 . . . . . . . . 25 14 . Garrison Access 19 | . . . 3 . 3 . . 5 6 . . . 2 . . . Terminal Hacks 62 | . 7 2 6 . 8 . . 1 3 8 4 . 11 1 10 1 Record 5 | . . 2 . . . . . . . . 3 . . . . . Part Schematic 4 | . . . . . 2 . . . . 1 . . . 1 . . Robot Schematic 4 | . . . 1 . 2 . . 1 . . . . . . . . Robot Analysis 10 | . 5 . 1 . . . . . . . . . 3 . 1 . Prototype ID Bank 2 | . . . 1 . . . . . . . . . . . 1 . Open Door 7 | . . . . . . . . . . 6 1 . . . . . Level Access Points 1 | . . . 1 . . . . . . . . . . . . . Branch Access Points 5 | . . . 1 . 1 . . . 1 . . . 1 . . 1 Emergency Access Points 1 | . . . . . 1 . . . . . . . . . . . Terminal Index 4 | . . . . . 1 . . . 1 . . . 1 . 1 . Unreport Threat 5 | . 1 . . . 1 . . . 1 . . . . . 2 . Locate Traps 1 | . 1 . . . . . . . . . . . . . . . Dispatch Records 5 | . . . . . . . . . . . . . 4 . 1 . Recall Reinforcements 1 | . . . . . . . . . . . . . . . 1 . Registered Prototypes 1 | . . . . . . . . . . . . . . . 1 . Zone Layout 5 | . . . 1 . . . . . . 1 . . 2 . 1 . Protovariant Controls 1 | . . . . . . . . . . . . . . . 1 . Fabricator Hacks 11 | . . . . 1 . . . 1 4 . . . . . 3 2 Network Status 1 | . . . . . . . . . . . . . . . 1 . Load Schematic 5 | . . . . . . . . 1 2 . . . . . 1 1 Build 5 | . . . . 1 . . . . 2 . . . . . 1 1 Repair Station Hacks 22 | . 2 . 2 3 . . . . . . . . . 8 7 . Scan Component 12 | . 1 . 1 2 . . . . . . . . . 4 4 . Repair 10 | . 1 . 1 1 . . . . . . . . . 4 3 . Recycling Unit Hacks 3 | . 2 . . . . . . 1 . . . . . . . . Retrieve Components 3 | . 2 . . . . . . 1 . . . . . . . . Scanalyzer 34 | . . . 9 . 3 . . . . . . . . 15 7 . Insert Component 17 | . . . 4 . 2 . . . . . . . . 7 4 . Analyze 17 | . . . 5 . 1 . . . . . . . . 8 3 . Garrison Access Hacks . | . . . . . . . . . . . . . . . . . Unauthorized Hacks 77 | . 13 . 10 2 4 . . 8 11 2 . . 11 3 12 1 Terminals 43 | . 10 . 5 1 3 . . . 3 2 . . 10 2 6 1 Track 4 | . 1 . . . . . . . . . . . 1 1 1 . Assimilate 2 | . . . . 1 . . . . . 1 . . . . . . Botnet 29 | . 7 . 4 . 2 . . . 2 1 . . 6 1 5 1 Detonate 4 | . 1 . 1 . 1 . . . . . . . 1 . . . Disrupt 3 | . 1 . . . . . . . 1 . . . 1 . . . Operators 1 | . . . . . . . . . . . . . 1 . . . Fabricators 12 | . . . . 1 . . . 2 4 . . . . . 5 . Report 1 | . . . . . . . . . . . . . . . 1 . Prioritize 3 | . . . . . . . . . 2 . . . . . 1 . Liberate 6 | . . . . 1 . . . 1 2 . . . . . 2 . Haulers 1 | . . . . . . . . . . . . . . . 1 . Recompile 1 | . . . . . . . . 1 . . . . . . . . Repair Stations . | . . . . . . . . . . . . . . . . . Recycling Units 7 | . 3 . 2 . . . . 2 . . . . . . . . Reject 4 | . 1 . 1 . . . . 2 . . . . . . . . Recyclers 2 | . 1 . 1 . . . . . . . . . . . . . Mask 1 | . 1 . . . . . . . . . . . . . . . Scanalyzers 4 | . . . 1 . 1 . . . . . . . . 1 1 . Researchers 2 | . . . . . . . . . . . . . . 1 1 . Extract 2 | . . . 1 . 1 . . . . . . . . . . . Garrison Access 11 | . . . 2 . . . . 4 4 . . . 1 . . . Broadcast 1 | . . . . . . . . . 1 . . . . . . . Decoy 1 | . . . . . . . . . 1 . . . . . . . Redirect 2 | . . . 1 . . . . 1 . . . . . . . . Reprogram 5 | . . . 1 . . . . 2 1 . . . 1 . . . Intercept 2 | . . . . . . . . 1 1 . . . . . . . Data Cores Recovered . | . . . . . . . . . . . . . . . . . Used . | . . . . . . . . . . . . . . . . . Hacking Detections 75 | . 8 . 11 3 9 . . 8 7 3 1 . 7 4 12 2 Full Trace Events 37 | . 2 . 7 2 5 . . 2 3 . . . 3 4 7 2 Feedback Events 3 | . . . . . 2 . . . . . . . . 1 . . Hackware Fried 3 | . . . . . 2 . . . . . . . . 1 . . Feedback Blocked . | . . . . . . . . . . . . . . . . . Robot Schematics Acquired 11 | . . . 1 . 2 . . 1 . . . . . . 7 . Robots Built 8 | . . . . . . . . . 5 . . . . . 1 2 Authchips 1 | . . . . . . . . . 1 . . . . . . . Time 196 | . . . . . . . . . 71 . . . . . 58 67 Total Robot Build Rating 34 | . . . . . . . . . 23 . . . . . 3 8 Part Schematics Acquired 34 | . . . 6 . 4 . . . . 1 . . . 7 16 . Parts Built 1 | . . . . 1 . . . . . . . . . . . . Authchips . | . . . . . . . . . . . . . . . . . Time 53 | . . . . 53 . . . . . . . . . . . . Total Part Build Rating 6 | . . . . 6 . . . . . . . . . . . . Parts Repaired 10 | . 1 . 1 1 . . . . . . . . . 4 3 . Time 450 | . 26 . 44 38 . . . . . . . . . 206 136 . Parts Recycled . | . . . . . . . . . . . . . . . . . Recycled Matter . | . . . . . . . . . . . . . . . . . Retrieved Matter . | . . . . . . . . . . . . . . . . . Retrieved Components 11 | . 11 . . . . . . . . . . . . . . . Parts Scanalyzed 16 | . . . 4 . 2 . . . . . . . . 7 3 . Part Schematics Acquired 14 | . . . 4 . 1 . . . . . . . . 6 3 . Parts Damaged 3 | . . . . . 1 . . . . . . . . 1 1 . Bothacking | -11 -10 -10 -8 -7 -6 -6 -6 -5 -4 -4 -4 -4 -4 -3 -3 -2 ------------ Run | Yrd Mat Sub Mat Fac Fac Low Low Fac Fac Ext Cet Arc Hub Res Tes Res Used RIF Installer . | . . . . . . . . . . . . . . . . . Robots Hacked . | . . . . . . . . . . . . . . . . . Non-combat . | . . . . . . . . . . . . . . . . . Combat . | . . . . . . . . . . . . . . . . . Robot Hacks Applied . | . . . . . . . . . . . . . . . . . Relay Couplers Released . | . . . . . . . . . . . . . . . . . Fabnet Peak Effective % . | . . . . . . . . . . . . . . . . . Robots Rewired 8 | . . . . 2 1 . . . 1 4 . . . . . . Allies Hacked 1 | . . . . . . . . . . . . . . . 1 . Hacks Repelled . | . . . . . . . . . . . . . . . . . Allies | -11 -10 -10 -8 -7 -6 -6 -6 -5 -4 -4 -4 -4 -4 -3 -3 -2 -------- Run | Yrd Mat Sub Mat Fac Fac Low Low Fac Fac Ext Cet Arc Hub Res Tes Res Total Allies 48 | . . . 1 3 1 . . 5 12 15 5 . 3 . 1 2 Largest Group 13 | . . . 1 2 1 . . 5 6 13 7 6 7 . 1 1 Highest-Rated Group 684 | . . . 27 62 32 . . 169 279 684 631 531 518 . 23 32 Highest-Rated Ally 159 | . . . 27 32 32 . . 41 47 159 159 96 96 . 23 32 Total Orders 4 | . . . . . . . . . . . . . . 3 1 . AID 1 | . . . . . . . . . . . . . . . 1 . EXPLORE 3 | . . . . . . . . . . . . . . 3 . . Ally Attacks 407 | . . . . 2 3 . . 45 56 150 41 33 75 . . 2 Total Damage 12409 | . . . . 164 106 . . 952 1362 3837 1687 1315 2872 . . 114 Kills 73 | . . . . 2 . . . 8 5 28 7 3 20 . . . Allies Corrupted 1 | . . . . . . . . . . . . . 1 . . . Allies Melted 2 | . . . . . . . . . . 1 . . . . . 1 Intel | -11 -10 -10 -8 -7 -6 -6 -6 -5 -4 -4 -4 -4 -4 -3 -3 -2 ------- Run | Yrd Mat Sub Mat Fac Fac Low Low Fac Fac Ext Cet Arc Hub Res Tes Res Robot Analysis Total 10 | . 5 . 1 . . . . . . . . . 3 . 1 . Derelict Logs Recovered 2 | . . 1 . . . 1 . . . . . . . . . . Drone Launches 6 | . . . . . . . . . . . . . . 6 . . Drone Recoveries 2 | . . . . . . . . . . . . . . 2 . . Exploration | -11 -10 -10 -8 -7 -6 -6 -6 -5 -4 -4 -4 -4 -4 -3 -3 -2 ------------- Run | Yrd Mat Sub Mat Fac Fac Low Low Fac Fac Ext Cet Arc Hub Res Tes Res Turns Passed 14087 | 84 1093 817 1384 765 445 85 7 487 457 611 601 335 519 2050 3333 1014 Spaces Moved 10749 | 52 577 534 902 1304 966 280 27 821 1071 436 384 159 255 904 1600 477 Core 82 | 5 . . . 7 . . . . . 1 . . . . . 69 Treads 3629 | . 400 . . . . . . . . . 160 159 255 904 1600 151 Legs 510 | . . . . . . . . . . 109 224 . . . . 177 Wheels 1387 | 47 177 534 629 . . . . . . . . . . . . . Hover 32 | . . . . . . . . . . . . . . . . 32 Flight 5109 | . . . 273 1297 966 280 27 821 1071 326 . . . . . 48 Fastest Speed 20 | 50 90 140 29 30 27 28 25 20 28 32 120 160 160 156 152 40 Average Speed 91 | 86 147 140 97 30 27 28 26 26 28 86 136 160 160 159 157 106 Slowest Speed 500 | 90 320 140 449 103 99 28 28 93 108 500 160 160 160 160 160 180 Overloaded Moves 56 | . . . . . . . 16 32 8 . . . . . . . Propulsion Burnouts 1 | . . . . . . . . . 1 . . . . . . . Robots Hopped 37 | . . . 2 4 1 . . 10 12 7 . . . . . 1 Cave-ins Triggered . | . . . . . . . . . . . . . . . . . Exploration Rate (%) 46 | 4 84 40 77 23 26 43 6 20 30 60 88 94 43 36 94 20 Regions Visited 16 Branch Regions 8 Pre-discovered Areas 1 | . . 1 . . . . . . . . . . . . . . Known Exits Taken 8 | . . . 1 . 1 1 . 1 1 1 . . . 1 1 . Unknown Exits Taken 8 | 1 1 1 . 1 . . 1 . . . 1 1 1 . . . Scrap Searched 5 | . . 3 . . . 2 . . . . . . . . . . Spaces Dug 116 | . 7 . 34 34 13 . . 16 . . . . . . 11 1 Terrain Destroyed 1211 | . 51 89 114 195 116 . . 16 11 4 2 13 188 103 71 238 Melee 33 | . . . 2 . 13 . . 16 . . . . . . 1 1 Projectile 128 | . . . 18 . . . . . . 4 2 13 15 22 36 18 AOE 972 | . 51 89 94 195 103 . . . 11 . . . 173 80 . 176 Terrain Rammed . | . . . . . . . . . . . . . . . . . Walls Destroyed . | . . . . . . . . . . . . . . . . . Machines Disabled . | . . . . . . . . . . . . . . . . . Actions | -11 -10 -10 -8 -7 -6 -6 -6 -5 -4 -4 -4 -4 -4 -3 -3 -2 --------- Run | Yrd Mat Sub Mat Fac Fac Low Low Fac Fac Ext Cet Arc Hub Res Tes Res Total 13690 | 77 781 566 1237 1645 1097 284 26 1018 1184 615 439 194 314 1312 2142 759 Wait 1306 | . 127 . 124 273 8 . . 121 13 63 1 1 14 218 298 45 Move 10665 | 51 576 533 897 1295 963 279 26 802 1047 424 383 158 254 903 1599 475 Hop 30 | . . . 2 4 1 . . 8 11 3 . . . . . 1 Pick Up 360 | 12 25 6 46 18 28 2 . 19 19 21 15 5 11 44 41 48 Fast Attach . | . . . . . . . . . . . . . . . . . Attach 193 | 7 . 1 17 5 21 . . 9 19 13 6 3 3 12 21 56 Detach 22 | . . . . 1 2 . . 2 6 2 2 . . . 2 5 Swap 151 | . 16 3 21 3 6 . . 10 8 3 8 2 4 23 38 6 Drop 227 | . 12 . 41 17 12 2 . 12 15 13 13 4 4 28 32 22 Fire 534 | 7 25 21 85 22 2 . . . 11 31 11 21 23 84 105 86 Melee 97 | . . 2 2 3 29 1 . 35 6 . . . . . 4 15 Ram . | . . . . . . . . . . . . . . . . . Kick . | . . . . . . . . . . . . . . . . . Crush 3 | . . . . . . . . . . . . . 1 . 2 . Escape Stasis 63 | . . . . . 24 . . . 20 19 . . . . . . Rewire 37 | . . . . 4 1 . . . 9 23 . . . . . . Trap . | . . . . . . . . . . . . . . . . . Miscellaneous 2 | . . . 2 . . . . . . . . . . . . . Route ------- -11/Scrapyard -10/Materials (discovered 4 exits: [*Mat x2] / [*Min] / *Sub) -10/Subcaves -8/Materials (discovered 3 exits: *Fac x3) -7/Factory -6/Factory (discovered 3 exits: *Fac / *Low x2) -6/Lower Caves -6/Lower Caves -5/Factory -4/Factory (discovered 5 exits: Upp x2 / *Ext x2 / Arm) -4/Extension (discovered 2 exits: *Res / *Cet) -4/Cetus (discovered 2 exits: *Res / *Arc) -4/Archives (discovered 3 exits: *Res / *Hub x2) -4/Hub_04(d) (discovered 2 exits: *Res x2) -3/Research -3/Testing -2/Research (discovered 2 exits: Qua x2) History --------- Turn | Location | Event 5 | -11/Scrapyard | Discovered new exit (range 15) 85 | -11/Scrapyard | Entered Materials 182 | -10/Materials | Discovered new exit (range 13) 281 | -10/Materials | Repaired Hcp. Matter Pod 317 | -10/Materials | Build established: Mutant 359 | -10/Materials | Discovered new exit (range 10) 429 | -10/Materials | Discovered new exit (range 14) 1165 | -10/Materials | Discovered new exit (range 9) 1178 | -10/Materials | Entered Subcaves 1225 | -10/Subcaves | A swath of the cavern ceiling suddenly collapsed 1521 | -10/Subcaves | Learned location of Storage (-7) 1570 | -10/Subcaves | Visited Clippyterm 1745 | -10/Subcaves | Disturbed a concealed Subdweller 1928 | -10/Subcaves | Shifting Twisted Machinery released Sub. Monowheel 1960 | -10/Subcaves | Shifting Twisted Machinery released Battle Cannon 1961 | -10/Subcaves | Discovered new exit (range 11) 1995 | -10/Subcaves | Entered Materials 1995 | -8/Materials | Evolved 4 slots: Propulsion x1, Utility x2, Weapon x1 2318 | -8/Materials | Build established: Gunner 2533 | -8/Materials | Garrison activated, responded to threat 2579 | -8/Materials | Destroyed 7 combat bots 2795 | -8/Materials | Repaired Corrupted Rnf. Ion Engine 3195 | -8/Materials | First assault squad dispatched 3230 | -8/Materials | Build established: Tank 3375 | -8/Materials | Identified exit to Factory 3379 | -8/Materials | Entered Factory 3379 | -7/Factory | Evolved 2 slots: Utility x2 3495 | -7/Factory | Repaired Nuclear Core 3573 | -7/Factory | Fabricated Smartbomb Launcher (x1) 3732 | -7/Factory | Build established: Hacker-Sprinter 4136 | -7/Factory | Discovered new exit (range 15) 4144 | -7/Factory | Entered another Factory area 4144 | -6/Factory | Evolved 2 slots: Power x1, Propulsion x1 4258 | -6/Factory | Hacking Suite fried by hacking feedback 4367 | -6/Factory | Identified exit to Lower Caves 4367 | -6/Factory | System Shield fried by hacking feedback 4462 | -6/Factory | Discovered new exit (range 16) 4494 | -6/Factory | Search patrols dispatched 4516 | -6/Factory | Lost 4 parts (1n3u) 4547 | -6/Factory | Central database locked down 4589 | -6/Factory | Entered Lower Caves 4604 | -6/Lower Caves | Encountered a Warlord checkpoint 4606 | -6/Lower Caves | Identified exit to Lower Caves 4674 | -6/Lower Caves | Entered another Lower Caves area 4678 | -6/Lower Caves | Discovered new exit (range 10) 4681 | -6/Lower Caves | Entered Factory 4681 | -5/Factory | Evolved 2 slots: Propulsion x1, Utility x1 5068 | -5/Factory | Build established: Scavenger-Sprinter 5085 | -5/Factory | Garrison activated, responded to threat 5156 | -5/Factory | Discovered new exit (range 4) 5160 | -5/Factory | Identified exit to Factory 5168 | -5/Factory | Entered another Factory area 5168 | -4/Factory | Evolved 2 slots: Propulsion x1, Utility x1 5294 | -4/Factory | Spotted B-86 Titan 5369 | -4/Factory | Fabricated Y-54 Guardian? 5495 | -4/Factory | Lost 5 allies 5522 | -4/Factory | Spotted B-86 Titan 5556 | -4/Factory | Identified exit to Upper Caves 5556 | -4/Factory | Identified exit to Extension 5556 | -4/Factory | Identified exit to Armory 5562 | -4/Factory | Fabricated G-50 Soldier? 5625 | -4/Factory | Entered Extension 5693 | -4/Extension | Rescued a captive Derelict 5693 | -4/Extension | Rescued a captive Derelict 5748 | -4/Extension | Rescued A7 5785 | -4/Extension | Rescued a captive Derelict 5814 | -4/Extension | Rescued a captive Derelict 5825 | -4/Extension | Rescued a captive Derelict 5853 | -4/Extension | Rescued a captive Derelict 5853 | -4/Extension | Rescued a captive Derelict 5861 | -4/Extension | Rescued a captive Derelict 5862 | -4/Extension | Rescued a captive Derelict 5866 | -4/Extension | Spotted B-86 Titan 5902 | -4/Extension | Spotted B-86 Titan 5920 | -4/Extension | Allies destroyed B-86 Titan 5921 | -4/Extension | Destroyed B-86 Titan 5944 | -4/Extension | Lost 6 allies 6100 | -4/Extension | Disrupted transfer network 6204 | -4/Extension | Discovered new exit (range 20) 6205 | -4/Extension | Discovered new exit (range 19) 6233 | -4/Extension | Identified exit to Cetus 6236 | -4/Extension | Entered Cetus 6236 | -4/Cetus | Accompanied by 6 allies (A7) 6241 | -4/Cetus | Acquired a Cetus Manufacturing Module code from A7 6250 | -4/Cetus | Spotted Cetus Guard 6250 | -4/Cetus | Spotted Cetus Guard 6253 | -4/Cetus | Destroyed Cetus Guard 6253 | -4/Cetus | Spotted Cetus Guard 6256 | -4/Cetus | Spotted Cetus Guard 6265 | -4/Cetus | Allies destroyed Cetus Guard 6273 | -4/Cetus | Allies destroyed Cetus Guard 6282 | -4/Cetus | Destroyed Cetus Guard 6313 | -4/Cetus | Lost 3 allies 6338 | -4/Cetus | Build established: Scavenger-Tank 6396 | -4/Cetus | Started Cetus Manufacturing Module 6405 | -4/Cetus | Escorted A7 to Cetus Mainframe 6421 | -4/Cetus | Manufactured an Enhanced Grunt 6446 | -4/Cetus | Manufactured an Enhanced Grunt 6471 | -4/Cetus | Manufactured an Enhanced Grunt 6485 | -4/Cetus | Discovered new exit (range 19) 6496 | -4/Cetus | Manufactured an Enhanced Grunt 6509 | -4/Cetus | Spotted Cetus Guard 6509 | -4/Cetus | Spotted Cetus Guard 6512 | -4/Cetus | Spotted Cetus Guard 6517 | -4/Cetus | Spotted Cetus Guard 6521 | -4/Cetus | Manufactured an Enhanced Grunt 6521 | -4/Cetus | Allies destroyed Cetus Guard 6521 | -4/Cetus | Allies destroyed Cetus Guard 6522 | -4/Cetus | Extracted ID and sensor layout for unrecognized location from A7's data core 6523 | -4/Cetus | Discovered new exit (range 19) 6525 | -4/Cetus | Allies destroyed Cetus Guard 6528 | -4/Cetus | Allies destroyed Cetus Guard 6548 | -4/Cetus | Met Revision 17 6837 | -4/Cetus | Entered Archives 6837 | -4/Archives | Accompanied by 6 allies 6858 | -4/Archives | Unable to access archive contents 6927 | -4/Archives | Discovered new exit (range 19) 6976 | -4/Archives | Discovered new exit (range 18) 7014 | -4/Archives | Discovered new exit (range 20) 7126 | -4/Archives | Unable to access archive contents 7172 | -4/Archives | Entered Hub_04(d) 7172 | -4/Hub_04(d) | Accompanied by 5 allies 7236 | -4/Hub_04(d) | Discovered new exit (range 20) 7321 | -4/Hub_04(d) | Found Prototype Hackware 7630 | -4/Hub_04(d) | Central database locked down 7660 | -4/Hub_04(d) | Network Hub disabled 7660 | -4/Hub_04(d) | Discovered new exit (range 17) 7669 | -4/Hub_04(d) | Lost 5 allies 7672 | -4/Hub_04(d) | First assault squad dispatched 7691 | -4/Hub_04(d) | Entered Research 7691 | -3/Research | Evolved 2 slots: Utility x1, Weapon x1 7769 | -3/Research | Repaired Centrium Heavy Treads 7820 | -3/Research | Repaired Adv. KE Penetrator 7876 | -3/Research | Repaired Centrium Medium Armor Plating 7891 | -3/Research | Revision forces began assault on 0b10 7894 | -3/Research | Met up with Revision 17++ 7926 | -3/Research | Repaired Adv. KE Penetrator 8057 | -3/Research | Adv. System Shield fried by hacking feedback 8366 | -3/Research | Found Adv. Powered Armor 8378 | -3/Research | Found Adv. Powered Armor 8391 | -3/Research | Research terminal network offline 8510 | -3/Research | Spotted B-86 Titan 8530 | -3/Research | Destroyed B-86 Titan 9304 | -3/Research | Spotted Striker 9339 | -3/Research | Destroyed Striker 9518 | -3/Research | Spotted Striker 9521 | -3/Research | Spotted Striker 9538 | -3/Research | Destroyed Striker 9545 | -3/Research | Destroyed Striker 9590 | -3/Research | Spotted Striker 9692 | -3/Research | Discovered new exit (range 18) 9739 | -3/Research | Identified exit to Testing 9741 | -3/Research | Entered Testing 9801 | -3/Testing | Identified Exp. Hacking Suite 9805 | -3/Testing | Protovariant out of control (PP-B6MFK8HKIL) 9805 | -3/Testing | Unleashed a protovariant (PP-B6MFK8HKIL) 9933 | -3/Testing | Spotted PP-B6MFK8HKIL 9983 | -3/Testing | Spotted Striker 9988 | -3/Testing | Spotted Striker 10269 | -3/Testing | Repaired Adv. Shield Generator 10329 | -3/Testing | Repaired Centrium Heavy Treads 10370 | -3/Testing | Build established: Scavenger-Gunner 10384 | -3/Testing | Repaired Centrium Heavy Treads 10684 | -3/Testing | Discovered new exit (range 6) 10691 | -3/Testing | Identified exit to Research 10853 | -3/Testing | Build established: Scavenger-Tank 10936 | -3/Testing | Fabricated M-28 Smith (x1) 11255 | -3/Testing | Found Adv. Powered Armor 11352 | -3/Testing | Found Prototype Ballistic Cannon 11353 | -3/Testing | Identified Perforator 11605 | -3/Testing | Found Prototype Device 11606 | -3/Testing | Identified Exp. Thermal Defense Suite 11617 | -3/Testing | Found Prototype Processor 11618 | -3/Testing | Identified Exp. Melee Analysis Suite 11655 | -3/Testing | Build established: Scavenger-Gunner 11747 | -3/Testing | Scanned by Researcher 11790 | -3/Testing | Found Prototype Energy Cannon 11867 | -3/Testing | Identified Disintegrator 12256 | -3/Testing | Found Prototype Energy Cannon 12257 | -3/Testing | Identified Cld. Nova Cannon 12655 | -3/Testing | Found Prototype Leg 13074 | -3/Testing | Entered Research 13074 | -2/Research | Spotted B-90 Cyclops 13074 | -2/Research | Evolved 2 slots: Utility x2 13262 | -2/Research | Garrison activated, responded to threat 13310 | -2/Research | Identified exit to Quarantine 13414 | -2/Research | Destroyed 16 combat bots 13478 | -2/Research | Destroyed 8 combat bots 13490 | -2/Research | Cargo convoy interrupted 13494 | -2/Research | Spotted Striker 13570 | -2/Research | Destroyed Striker 13574 | -2/Research | Garrison activated, responded to threat 13586 | -2/Research | Identified Myomer Exoskeleton 13679 | -2/Research | Lost 19 parts (4p3n9u3w) 13717 | -2/Research | System corruption reached 10% 13788 | -2/Research | Found Prototype Processor 13789 | -2/Research | Identified Exp. Armor Integrity Analyzer 13790 | -2/Research | Lost 7 parts (1p1n4u1w) 13795 | -2/Research | Found Exp. Armor Integrity Analyzer 13860 | -2/Research | First assault squad dispatched 13933 | -2/Research | Core integrity fell below 50% 14048 | -2/Research | Core integrity fell below 20% 14056 | -2/Research | Lost 24 parts (2p5n13u4w) 14061 | -2/Research | Fabricated Y-54 Guardian? 14083 | -2/Research | Spotted B-90 Cyclops 14088 | -2/Research | Destroyed by H-88 Terminator with KE Penetrator Last Messages --------------- 14064_ Dropped Exp. Matter Compressor. 14064_ Acquired Gravmag Array. 14067_ Acquired Lgt. Antimatter Reactor. 14070_ Extracted 299 matter. 14070_ Acquired Exp. Matter Compressor. 14072_ Slug penetrates Door. 14074_ C-30 ARC bursts open, deploying its payload. 14074_ G-73 Enforcer unfolds itself. 14074_ M-36 Artificer unfolds itself. 14078_ Penetrated by Slug. 14080_ System corrupted: Heat flow error (+178). 14082_ Slug penetrates Wall. 14084_ Triggered Shock Trap. 14084_ The floor emits a surge of raw power. 14084_ System corrupted (+1). 14085_ Lgt. Antimatter Reactor destroyed. 14085_ Penetrated by Slug. 14085_ Slug penetrates Wall. 14088_ Penetrated by Slug. Map ----- +----------------------------------------------------+ | # #??????????????????????# | | # """ ##########"############# | | # """" # =|=*!%!=[[! + | | # """" # ########### ####### | | # """ # #?????????# #?????# | | # # #????######+####### | | # " ###### # | | # """ # "%" + # | | # """" # ######"" #? | | # """" # #??###"" #+# | | # """ # #? #"" # | | # # l #? #T " + | | # # #! #"" "%"""" # | | # # # #"" """"" # | | ########### + #"" """" ### | | ??????????# # # """" #? | | ??????????# # # # | | ########### #? # # | | # ] ; ################### | | # ; #??????????### | | # # #????????????? | | # # ###??????????? | | # ; *! BB#??????????? | | # ! # !! BB#??????????? | | # # ! ###??????????? | | # ?#@ #????????????? | | ?########?# k ????????? | | ??????????# ????????? | | ??????????# ! A ?????????? | | ??????????# gg A ?????????? | | ??????????# ######/###??????????? | | ??????????# #????? ???????????? | | ??????????# #?????? ???????????? | | ??????????# #???????????????????? | | ??????????+ #???????????????????? | | ??????????? ???????????????????? | | ??????????? #???????????????????? | | ???????????# ##???????????????????? | | ???????????? #????????????????????? | | ???????????? #????????????????????? | | ???????????? ?????????????????????? | | ???????????????????????????????????? | | ???????????????????????????????????? | | ???????????????????????????????????? | | ???????????????????????????????????? | | ???????????????????????????????????? | | ???????????????????????????????????? | | ???????????????????????????????????? | | ???????????????????????????????????? | | ???????????????????????????????????? | +----------------------------------------------------+ Best States ------------- Heat Dissipation 96 Coolant Potential 120 Energy Generation 45 Energy Capacity 1020 Matter Stores 300 Matter Capacity 300 Sight Range 20 Robot Scan Range 16 Terrain Scan Density 10 Jamming Range 16 Additional Mass Support 9 EM Shielding 4 Armor Coverage 1050 Resistance: KI 20 Resistance: TH 20 Resistance: EX 20 Resistance: EM 20 Resistance: I 20 Resistance: S 20 Resistance: P 20 Core Shielding 30 Phase Shifting 15 Evasion (%) 77 Targeting Accuracy 8 Melee Accuracy 12 Target Analysis 12 Armor Integrity Analysis 50 Recoil Reduction 6 Particle Charging 20 Salvage Targeting 2 Offensive Hacking 36 Defensive Hacking 28 Authchip Count 1 Item Schematics ----------------- Imp. Cooling System | -8/Materials | Scanalyzed Ion Engine | -8/Materials | Scanalyzed Trap Scanner | -8/Materials | Extracted Imp. Heat Sink | -8/Materials | Extracted Imp. VTOL Module | -8/Materials | Scanalyzed Dynamic Insulation System | -8/Materials | Scanalyzed Hacking Suite | -6/Factory | Hacked Adv. Focal Shield | -6/Factory | Hacked Surge Thruster | -6/Factory | Scanalyzed Imp. Melee Analysis Suite | -6/Factory | Extracted Nuclear Pulse Array | -4/Extension | Hacked Centrium Medium Armor Plating | -3/Research | Scanalyzed Biometal Leg | -3/Research | Scanalyzed Particle Reactor | -3/Research | Scanalyzed Imp. System Restoration Module | -3/Research | Scanalyzed Myomer Leg | -3/Research | Scanalyzed Quantum Rifle | -3/Research | Scanalyzed Biometal Medium Treads | -3/Research | Hacked Lrn. Phase Cannon | -3/Testing | Archive Adv. Plasma Rifle | -3/Testing | Archive Coolant Network | -3/Testing | Archive Exp. EM Disruption Field | -3/Testing | Archive Exp. Signal Interpreter | -3/Testing | Archive Adv. Powered Armor | -3/Testing | Scanalyzed Enh. Fission Core | -3/Testing | Archive Exp. Myomer Leg | -3/Testing | Scanalyzed Exp. System Shield | -3/Testing | Archive Hvy. Wave Gun | -3/Testing | Archive Exp. Matter Compressor | -3/Testing | Archive Ionic Axe | -3/Testing | Archive Adv. Variable Charge Gun | -3/Testing | Archive Exp. Cooling System | -3/Testing | Scanalyzed Gravity Neutralizer | -3/Testing | Archive Thunder Hammer | -3/Testing | Archive Robot Schematics ------------------ M-28 Smith | -8/Materials | Hacked G-50 Soldier | -6/Factory | Hacked Y-54 Guardian | -6/Factory | Hacked B-60 Warrior | -5/Factory | Hacked E-15 Imp | -3/Testing | Archive C-55 Analyst | -3/Testing | Archive W-44 Eye | -3/Testing | Archive S-43 Plague | -3/Testing | Archive A-27 Freighter | -3/Testing | Archive K-01 Serf | -3/Testing | Archive R-10 Processor | -3/Testing | Archive Fabricated ------------ Smartbomb Launcher | x1 | -7/Factory | Preloaded Y-54 Guardian | x2 | -4/Factory | Authchip G-50 Soldier | x3 | -4/Factory M-28 Smith | x1 | -3/Testing Y-54 Guardian | x2 | -2/Research Alien Tech Used ----------------- None Achievements -------------- Dramatic Entrance Challenges ------------ None Game ------ Seed BottomlessTargetingDriver Manual? 0 Play Time 03:57:52 Cumulative 371.6 hours Start 2024.06.23 @ 19:20:43 End 2024.06.23 @ 23:31:31 Sessions 1 Manual Loads 0 Difficulty Adventurer Special Mode None Game No. 63 Rogue 0 Adventurer 63 Explorer 0 Win Type - Total 3 Types 2/0/0/1/0/0/0/0/0 Lore% 52 Gallery% 75 Achievement% 64 Wizard Run 0 Options --------- Layout 2 ASCII 0 Keyboard 0 Movement Mouse Keybinds 0 Fullscreen 1 Font 24/Smallcaps Map View 50x49 Zoom Use 3% Tactical HUD 1 Map Filters NONE Filters NONE Steam 1 RUN: 510a16b4-d713-4a4f-9fd2-28417a92a381